Workbook

Sheet January 14
A1: الوصول المجدول | B1: الوصول الفعلي | C1: Arrived time to station | E1: AbuAhmed
A2: time | C2: Test Code 1 | D2: Test Code 2 | E2: ساعات | F2: دقائق
A3: 0.9854166667 | B3: 0.0006944444444 | C3: =IF(B3<A3,TEXT(MIN(A3)-MAX(B3),"-H::MM"),TEXT(MAX(B3)-MIN(A3),"H::MM")) -> -23:38 | D3: =IF((B3<A3),(B3-A3)+IF(B3<A3,1),(B3-A3)+IF(B3>A3,1)) -> 00:22:00 | E3: =ArrivalTimeDiff(A3, B3) -> 0.3666666667 | F3: =IF(E3="","",E3*60) -> 22
A4: 03:04:12 | B4: 04:42:00 | C4: =IF(B4<A4,TEXT(MIN(A4)-MAX(B4),"-H::MM"),TEXT(MAX(B4)-MIN(A4),"H::MM")) -> 1:37 | D4: =IF((B4<A4),(B4-A4)+IF(B4<A4,1),(B4-A4)+IF(B4>A4,1)) -> 1.067916667 | E4: =ArrivalTimeDiff(A4, B4) -> 1.63 | F4: 97.8 | H4: test code1
A5: 00:13:00 | B5: 23:47:00 | C5: 23:34 | D5: 1.981944444 | E5: =ArrivalTimeDiff(A5, B5) -> -0.4333333333 | F5: -26 | H5: هو اللي عاجبني
A6: 00:05:00 | B6: 00:33:00 | C6: 0:28 | D6: 1.019444444 | E6: =ArrivalTimeDiff(A6, B6) -> 0.4666666667 | F6: 28 | H6: بس فارق التوقيت يظهر بعدد كبير خاطئ
A7: 01:05:00 | B7: 01:37:00 | C7: 0:32 | D7: 1.022222222 | E7: =ArrivalTimeDiff(A7, B7) -> 0.5333333333 | F7: 32 | H7: وابيها على كل المتغيرات
A8: 00:05:00 | B8: 00:38:00 | C8: 0:33 | D8: 1.022916667 | E8: =ArrivalTimeDiff(A8, B8) -> 0.55 | F8: 33
A9: 23:39:00 | B9: 00:18:00 | C9: -23:21 | D9: 00:39:00 | E9: =ArrivalTimeDiff(A9, B9) -> 0.65 | F9: 39
A10: 23:39:00 | B10: 00:19:00 | C10: -23:20 | D10: 00:40:00 | E10: =ArrivalTimeDiff(A10, B10) -> 0.6666666667 | F10: 40
A11: 00:05:00 | B11: 00:50:00 | C11: 0:45 | D11: 1.03125 | E11: =ArrivalTimeDiff(A11, B11) -> 0.75 | F11: 45
A12: 23:39:00 | B12: 00:29:00 | C12: -23:10 | D12: 00:50:00 | E12: =ArrivalTimeDiff(A12, B12) -> 0.8333333333 | F12: 50
A13: 00:23:00 | B13: 23:32:00 | C13: 23:09 | D13: 1.964583333 | E13: =ArrivalTimeDiff(A13, B13) -> -0.85 | F13: -51
A14: 01:05:00 | B14: 02:12:00 | C14: 1:07 | D14: 1.046527778 | E14: =ArrivalTimeDiff(A14, B14) -> 1.116666667 | F14: 67
A15: 00:56:00 | B15: 23:41:00 | C15: 22:45 | D15: 1.947916667 | E15: =ArrivalTimeDiff(A15, B15) -> -1.25 | F15: -75
A16: 01:08:00 | B16: 23:52:00 | C16: 22:44 | D16: 1.947222222 | E16: =ArrivalTimeDiff(A16, B16) -> -1.266666667 | F16: -76
A17: 01:08:00 | B17: 23:50:00 | C17: 22:42 | D17: 1.945833333 | E17: =ArrivalTimeDiff(A17, B17) -> -1.3 | F17: -78
A18: 22:47:00 | B18: 00:07:00 | C18: -22:40 | D18: 01:20:00 | E18: =ArrivalTimeDiff(A18, B18) -> 1.333333333 | F18: 80
A19: 00:56:00 | B19: 23:33:00 | C19: 22:37 | D19: 1.942361111 | E19: =ArrivalTimeDiff(A19, B19) -> -1.383333333 | F19: -83
A20: 01:08:00 | B20: 23:44:00 | C20: 22:36 | D20: 1.941666667 | E20: =ArrivalTimeDiff(A20, B20) -> -1.4 | F20: -84
A21: 23:19:00 | B21: 00:48:00 | C21: -22:31 | D21: 01:29:00 | E21: =ArrivalTimeDiff(A21, B21) -> 1.483333333 | F21: 89
A22: 22:47:00 | B22: 00:18:00 | C22: -22:29 | D22: 01:31:00 | E22: =ArrivalTimeDiff(A22, B22) -> 1.516666667 | F22: 91
A23: 22:38:00 | B23: 00:10:00 | C23: -22:28 | D23: 01:32:00 | E23: =ArrivalTimeDiff(A23, B23) -> 1.533333333 | F23: 92
A24: 22:47:00 | B24: 00:22:00 | C24: -22:25 | D24: 01:35:00 | E24: =ArrivalTimeDiff(A24, B24) -> 1.583333333 | F24: 95
A25: 01:08:00 | B25: 23:34:00 | C25: 22:26 | D25: 1.934722222 | E25: =ArrivalTimeDiff(A25, B25) -> -1.566666667 | F25: -94
A26: 22:47:00 | B26: 00:25:00 | C26: -22:22 | D26: 01:38:00 | E26: =ArrivalTimeDiff(A26, B26) -> 1.633333333 | F26: 98
A27: 22:47:00 | B27: 00:28:00 | C27: -22:19 | D27: 01:41:00 | E27: =ArrivalTimeDiff(A27, B27) -> 1.683333333 | F27: 101
A28: 22:10:00 | B28: 00:01:00 | C28: -22:09 | D28: 01:51:00 | E28: =ArrivalTimeDiff(A28, B28) -> 1.85 | F28: 111
A29: 22:47:00 | B29: 00:39:00 | C29: -22:08 | D29: 01:52:00 | E29: =ArrivalTimeDiff(A29, B29) -> 1.866666667 | F29: 112
A30: 01:54:00 | B30: 23:48:00 | C30: 21:54 | D30: 1.9125 | E30: =ArrivalTimeDiff(A30, B30) -> -2.1 | F30: -126
A31: 21:53:00 | C31: -21:53 | D31: 02:07:00 | E31: =ArrivalTimeDiff(A31, B31) -> 
A32: 22:47:00 | B32: 00:56:00 | C32: -21:51 | D32: 02:09:00 | E32: =ArrivalTimeDiff(A32, B32) -> 2.15 | F32: 129
A33: 21:54:00 | B33: 00:05:00 | C33: -21:49 | D33: 02:11:00 | E33: =ArrivalTimeDiff(A33, B33) -> 2.183333333 | F33: 131
A34: 22:47:00 | B34: 00:59:00 | C34: -21:48 | D34: 02:12:00 | E34: =ArrivalTimeDiff(A34, B34) -> 2.2 | F34: 132
A35: 23:09:00 | B35: 01:25:00 | C35: -21:44 | D35: 02:16:00 | E35: =ArrivalTimeDiff(A35, B35) -> 2.266666667 | F35: 136
A36: 21:55:00 | B36: 00:15:00 | C36: -21:40 | D36: 02:20:00 | E36: =ArrivalTimeDiff(A36, B36) -> 2.333333333 | F36: 140
A37: 21:55:00 | B37: 00:17:00 | C37: -21:38 | D37: 02:22:00 | E37: =ArrivalTimeDiff(A37, B37) -> 2.366666667 | F37: 142
A38: 21:55:00 | B38: 00:20:00 | C38: -21:35 | D38: 02:25:00 | E38: =ArrivalTimeDiff(A38, B38) -> 2.416666667 | F38: 145
A39: 22:47:00 | B39: 01:36:00 | C39: -21:11 | D39: 02:49:00 | E39: =ArrivalTimeDiff(A39, B39) -> 2.816666667 | F39: 169
A40: 22:10:00 | B40: 01:01:00 | C40: -21:09 | D40: 02:51:00 | E40: =ArrivalTimeDiff(A40, B40) -> 2.85 | F40: 171
A41: 21:03:00 | B41: 00:05:00 | C41: -20:58 | D41: 03:02:00 | E41: =ArrivalTimeDiff(A41, B41) -> 3.033333333 | F41: 182
A42: 20:41:00 | B42: 00:25:00 | C42: -20:16 | D42: 03:44:00 | E42: =ArrivalTimeDiff(A42, B42) -> 3.733333333 | F42: 224
A43: 23:45:36 | B43: 23:54:00 | C43: 0:08 | D43: 1.005833333 | E43: =ArrivalTimeDiff(A43, B43) -> 0.14 | F43: 8.4
A44: 20:38:30 | B44: 20:45:00 | C44: 0:06 | D44: 1.004513889 | E44: =ArrivalTimeDiff(A44, B44) -> 0.1083333333 | F44: 6.5
A45: 00:13:36 | B45: 00:48:00 | C45: 0:34 | D45: 1.023888889 | E45: =ArrivalTimeDiff(A45, B45) -> 0.5733333333 | F45: 34.4
A46: 11:05:00 | B46: 11:15:00 | C46: 0:10 | D46: 1.006944444 | E46: =ArrivalTimeDiff(A46, B46) -> 0.1666666667 | F46: 10
A47: 15:24:24 | B47: 15:49:00 | C47: 0:24 | D47: 1.017083333 | E47: =ArrivalTimeDiff(A47, B47) -> 0.41 | F47: 24.6
A48: 15:13:18 | B48: 15:52:00 | C48: 0:38 | D48: 1.026875 | E48: =ArrivalTimeDiff(A48, B48) -> 0.645 | F48: 38.7
A49: 20:23:00 | B49: 19:06:00 | C49: -1:17 | D49: 22:43:00 | E49: =ArrivalTimeDiff(A49, B49) -> -1.283333333 | F49: -77
A50: 22:58:54 | B50: 22:22:00 | C50: -0:36 | D50: 23:23:06 | E50: =ArrivalTimeDiff(A50, B50) -> -0.615 | F50: -36.9
A51: 15:31:24 | B51: 15:26:00 | C51: -0:05 | D51: 23:54:36 | E51: =ArrivalTimeDiff(A51, B51) -> -0.09 | F51: -5.4
A52: 21:54:39 | B52: 23:03:00 | C52: 1:08 | D52: 1.047465278 | E52: =ArrivalTimeDiff(A52, B52) -> 1.139166667 | F52: 68.35
A53: 11:16:48 | B53: 11:44:00 | C53: 0:27 | D53: 1.018888889 | E53: =ArrivalTimeDiff(A53, B53) -> 0.4533333333 | F53: 27.2
A54: 21:55:36 | B54: 23:00:00 | C54: 1:04 | D54: 1.044722222 | E54: =ArrivalTimeDiff(A54, B54) -> 1.073333333 | F54: 64.4
A55: 00:35:24 | B55: 01:12:00 | C55: 0:36 | D55: 1.025416667 | E55: =ArrivalTimeDiff(A55, B55) -> 0.61 | F55: 36.6
A56: 22:28:15 | B56: 23:00:00 | C56: 0:31 | D56: 1.022048611 | E56: =ArrivalTimeDiff(A56, B56) -> 0.5291666667 | F56: 31.75
A57: 11:55:48 | B57: 11:58:00 | C57: 0:02 | D57: 1.001527778 | E57: =ArrivalTimeDiff(A57, B57) -> 0.03666666667 | F57: 2.2
A58: 14:32:00 | B58: 16:16:00 | C58: 1:44 | D58: 1.072222222 | E58: =ArrivalTimeDiff(A58, B58) -> 1.733333333 | F58: 104
A59: 12:05:00 | B59: 12:12:00 | C59: 0:07 | D59: 1.004861111 | E59: =ArrivalTimeDiff(A59, B59) -> 0.1166666667 | F59: 7
A60: 14:54:00 | B60: 15:01:00 | C60: 0:07 | D60: 1.004861111 | E60: =ArrivalTimeDiff(A60, B60) -> 0.1166666667 | F60: 7
A61: 12:42:24 | B61: 13:05:00 | C61: 0:22 | D61: 1.015694444 | E61: =ArrivalTimeDiff(A61, B61) -> 0.3766666667 | F61: 22.6
A62: 22:38:30 | B62: 23:04:00 | C62: 0:25 | D62: 1.017708333 | E62: =ArrivalTimeDiff(A62, B62) -> 0.425 | F62: 25.5
A63: 13:05:00 | B63: 13:36:00 | C63: 0:31 | D63: 1.021527778 | E63: =ArrivalTimeDiff(A63, B63) -> 0.5166666667 | F63: 31
A64: 00:48:12 | B64: 02:46:00 | C64: 1:57 | D64: 1.081805556 | E64: =ArrivalTimeDiff(A64, B64) -> 1.963333333 | F64: 117.8
A65: 22:47:03 | B65: 00:28:00 | C65: -22:19 | D65: 01:40:57 | E65: =ArrivalTimeDiff(A65, B65) -> 1.6825 | F65: 100.95
A66: 00:47:24 | B66: 01:42:00 | C66: 0:54 | D66: 1.037916667 | E66: =ArrivalTimeDiff(A66, B66) -> 0.91 | F66: 54.6
A67: 13:16:48 | B67: 13:50:00 | C67: 0:33 | D67: 1.023055556 | E67: =ArrivalTimeDiff(A67, B67) -> 0.5533333333 | F67: =IF(E67="","",E67*60) -> 33.2
A68: 15:20:12 | B68: 15:12:00 | C68: =IF(B68<A68,TEXT(MIN(A68)-MAX(B68),"-H::MM"),TEXT(MAX(B68)-MIN(A68),"H::MM")) -> -0:08 | D68: =IF((B68<A68),(B68-A68)+IF(B68<A68,1),(B68-A68)+IF(B68>A68,1)) -> 23:51:48 | E68: =ArrivalTimeDiff(A68, B68) -> -0.1366666667 | F68: -8.2
A69: 06:14:06 | B69: 06:04:00 | C69: -0:10 | D69: 23:49:54 | E69: -0.1683333333 | F69: -10.1
A70: 19:46:00 | B70: 19:41:00 | C70: -0:05 | D70: 23:55:00 | E70: -0.08333333333 | F70: -5
A71: 03:38:36 | B71: 05:41:00 | C71: 2:02 | D71: 1.085 | E71: 2.04 | F71: 122.4
A72: 18:54:24 | B72: 19:17:00 | C72: 0:22 | D72: 1.015694444 | E72: 0.3766666667 | F72: 22.6
A73: 18:43:18 | B73: 19:01:00 | C73: 0:17 | D73: 1.012291667 | E73: 0.295 | F73: 17.7
A74: 07:08:21 | B74: 07:58:00 | C74: 0:49 | D74: 1.034479167 | E74: 0.8275 | F74: 49.65
A75: 15:05:00 | B75: 15:29:00 | C75: 0:24 | D75: 1.016666667 | E75: 0.4 | F75: 24
A76: 01:40:36 | B76: 02:55:00 | C76: 1:14 | D76: 1.051666667 | E76: 1.24 | F76: 74.4
A77: 01:41:00 | B77: 03:10:00 | C77: 1:29 | D77: 1.061805556 | E77: 1.483333333 | F77: 89
A78: 21:15:09 | B78: 21:58:00 | C78: 0:42 | D78: 1.029756944 | E78: 0.7141666667 | F78: 42.85
A79: 22:10:00 | B79: 22:30:00 | C79: 0:20 | D79: 1.013888889 | E79: 0.3333333333 | F79: 20
A80: 16:16:48 | B80: 16:35:00 | C80: 0:18 | D80: 1.012638889 | E80: 0.3033333333 | F80: 18.2
A81: 16:25:48 | B81: 16:33:00 | C81: 0:07 | D81: 1.005 | E81: 0.12 | F81: 7.2
A82: 05:50:24 | B82: 06:38:00 | C82: 0:47 | D82: 1.033055556 | E82: 0.7933333333 | F82: 47.6
A83: 17:12:24 | B83: 17:15:00 | C83: 0:02 | D83: 1.001805556 | E83: 0.04333333333 | F83: 2.6
A84: 19:54:00 | B84: 19:36:00 | C84: -0:18 | D84: 23:42:00 | E84: -0.3 | F84: -18
A85: 21:33:51 | B85: 21:41:00 | C85: 0:07 | D85: 1.004965278 | E85: 0.1191666667 | F85: 7.15
A86: 20:32:36 | B86: 20:34:00 | C86: 0:01 | D86: 1.000972222 | E86: 0.02333333333 | F86: 1.4
A87: 18:05:00 | B87: 18:23:00 | C87: 0:18 | D87: 1.0125 | E87: 0.3 | F87: 18
A88: 22:24:24 | B88: 23:05:00 | C88: 0:40 | D88: 1.028194444 | E88: 0.6766666667 | F88: 40.6
A89: 22:13:18 | B89: 23:26:00 | C89: 1:12 | D89: 1.050486111 | E89: 1.211666667 | F89: 72.7
A90: 19:46:45 | B90: 20:15:00 | C90: 0:28 | D90: 1.019618056 | E90: 0.4708333333 | F90: 28.25
A91: 07:09:09 | B91: 06:58:00 | C91: -0:11 | D91: 23:48:51 | E91: -0.1858333333 | F91: -11.15
A92: 18:16:48 | B92: 18:29:00 | C92: 0:12 | D92: 1.008472222 | E92: 0.2033333333 | F92: 12.2
A93: 03:41:36 | B93: 04:08:00 | C93: 0:26 | D93: 1.018333333 | E93: 0.44 | F93: 26.4
A94: 05:10:36 | B94: 05:59:00 | C94: 0:48 | D94: 1.033611111 | E94: 0.8066666667 | F94: 48.4
A95: 07:58:36 | B95: 08:55:00 | C95: 0:56 | D95: 1.039166667 | E95: 0.94 | F95: 56.4
A96: 21:44:06 | B96: 22:44:00 | C96: 0:59 | D96: 1.041597222 | E96: 0.9983333333 | F96: 59.9
A97: 07:23:00 | B97: 06:11:00 | C97: -1:12 | D97: 22:48:00 | E97: -1.2 | F97: -72
A98: 08:15:36 | B98: 06:35:00 | C98: -1:40 | D98: 22:19:24 | E98: -1.676666667 | F98: -100.6
A99: 06:47:24 | B99: 07:31:00 | C99: 0:43 | D99: 1.030277778 | E99: 0.7266666667 | F99: 43.6
A100: 19:16:48 | B100: 19:29:00 | C100: 0:12 | D100: 1.008472222 | E100: 0.2033333333 | F100: 12.2
A101: 07:18:12 | B101: 07:49:00 | C101: 0:30 | D101: 1.021388889 | E101: 0.5133333333 | F101: 30.8
A102: 08:58:36 | B102: 08:57:00 | C102: -0:01 | D102: 23:58:24 | E102: -0.02666666667 | F102: -1.6
A103: 08:35:24 | B103: 10:27:00 | C103: 1:51 | D103: 1.0775 | E103: 1.86 | F103: 111.6
A104: 05:17:03 | B104: 06:29:00 | C104: 1:11 | D104: 1.049965278 | E104: 1.199166667 | F104: 71.95
A105: 05:38:30 | B105: 07:29:00 | C105: 1:50 | D105: 1.076736111 | E105: 1.841666667 | F105: 110.5
A106: 20:05:00 | B106: 20:05:00 | C106: 0:00 | D106: 00:00:00 | E106: 0 | F106: 0
A107: 08:33:00 | B107: 09:02:00 | C107: 0:29 | D107: =IF((B107<A107),(B107-A107)+IF(B107<A107,1),(B107-A107)+IF(B107>A107,1)) -> 1.020138889 | E107: 0.4833333333 | F107: 29
A108: 08:50:00 | B108: 08:57:00 | C108: 0:07 | D108: 1.004861111 | E108: 0.1166666667 | F108: 7
A109: 06:58:15 | B109: 08:08:00 | C109: 1:09 | D109: 1.0484375 | E109: 1.1625 | F109: 69.75
A110: 06:54:39 | B110: 08:12:00 | C110: 1:17 | D110: 1.053715278 | E110: 1.289166667 | F110: 77.35
A111: 20:16:48 | B111: 20:34:00 | C111: 0:17 | D111: 1.011944444 | E111: 0.2866666667 | F111: 17.2
A112: 09:35:24 | B112: 10:12:00 | C112: 0:36 | D112: 1.025416667 | E112: 0.61 | F112: 36.6
A113: 21:05:00 | B113: 21:06:00 | C113: 0:01 | D113: 1.000694444 | E113: 0.01666666667 | F113: 1
A114: 21:10:48 | B114: 21:11:00 | C114: 0:00 | D114: 1.000138889 | E114: 0.003333333333 | F114: 0.2
A115: 21:16:48 | B115: 21:45:00 | C115: 0:28 | D115: 1.019583333 | E115: 0.47 | F115: 28.2
A116: 05:22:24 | B116: 05:13:00 | C116: -0:09 | D116: 23:50:36 | E116: -0.1566666667 | F116: -9.4
A117: 01:54:24 | B117: 01:51:00 | C117: -0:03 | D117: 23:56:36 | E117: -0.05666666667 | F117: -3.4
A118: 01:43:18 | B118: 02:12:00 | C118: 0:28 | D118: 1.019930556 | E118: 0.4783333333 | F118: 28.7
A119: 05:56:24 | B119: 06:22:00 | C119: 0:25 | D119: 1.017777778 | E119: 0.4266666667 | F119: 25.6
A120: 06:20:36 | B120: 05:53:00 | C120: -0:27 | D120: 23:32:24 | E120: -0.46 | F120: -27.6
A121: 05:38:57 | B121: 06:13:00 | C121: 0:34 | D121: 1.023645833 | E121: 0.5675 | F121: 34.05
A122: 06:39:48 | B122: 08:11:00 | C122: 1:31 | D122: 1.063333333 | E122: 1.52 | F122: 91.2
A123: 08:11:36 | B123: 10:12:00 | C123: 2:00 | D123: 1.083611111 | E123: 2.006666667 | F123: 120.4
A124: 21:57:24 | B124: 22:08:00 | C124: 0:10 | D124: 1.007361111 | E124: 0.1766666667 | F124: 10.6
A125: 14:29:06 | B125: 14:12:00 | C125: -0:17 | D125: 23:42:54 | E125: -0.285 | F125: -17.1
A126: 22:05:00 | B126: 22:51:00 | C126: 0:46 | D126: 1.031944444 | E126: 0.7666666667 | F126: 46
A127: 08:40:36 | B127: 10:30:00 | C127: 1:49 | D127: 1.075972222 | E127: 1.823333333 | F127: 109.4
A128: 14:38:21 | B128: 13:30:00 | C128: -1:08 | D128: 22:51:39 | E128: -1.139166667 | F128: -68.35
A129: 06:47:21 | B129: 09:20:00 | C129: 2:32 | D129: 1.106006944 | E129: 2.544166667 | F129: 152.65
A130: 08:58:15 | B130: 08:50:00 | C130: -0:08 | D130: 23:51:45 | E130: -0.1375 | F130: -8.25
A131: 08:54:39 | B131: 09:20:00 | C131: 0:25 | D131: 1.017604167 | E131: 0.4225 | F131: =IF(E131="","",E131*60) -> 25.35
A132: 22:16:48 | B132: 22:42:00 | C132: =IF(B132<A132,TEXT(MIN(A132)-MAX(B132),"-H::MM"),TEXT(MAX(B132)-MIN(A132),"H::MM")) -> 0:25 | D132: =IF((B132<A132),(B132-A132)+IF(B132<A132,1),(B132-A132)+IF(B132>A132,1)) -> 1.0175 | E132: =ArrivalTimeDiff(A132, B132) -> 0.42 | F132: 25.2
A133: 07:14:00 | B133: 08:14:00 | C133: 1:00 | D133: 1.041666667 | E133: 1 | F133: 60
A134: 07:22:48 | B134: 13:36:00 | C134: 6:13 | D134: 1.259166667 | E134: 6.22 | F134: 373.2
A135: 12:13:36 | B135: 14:14:00 | C135: 2:00 | D135: 1.083611111 | E135: 2.006666667 | F135: 120.4
A136: 23:05:00 | B136: 23:59:00 | C136: 0:54 | D136: 1.0375 | E136: 0.9 | F136: 54
A137: 05:05:00 | B137: 04:47:00 | C137: -0:18 | D137: 23:42:00 | E137: -0.3 | F137: -18
A138: 12:15:36 | B138: 12:00:00 | C138: -0:15 | D138: 23:44:24 | E138: -0.26 | F138: -15.6
A139: 09:41:36 | B139: 11:23:00 | C139: 1:41 | D139: 1.070416667 | E139: 1.69 | F139: 101.4
A140: 01:54:00 | B140: 01:54:00 | C140: 0:00 | D140: 00:00:00 | E140: 0 | F140: 0
A141: 23:16:48 | B141: 23:33:00 | C141: 0:16 | D141: 1.01125 | E141: 0.27 | F141: 16.2
A142: 01:10:12 | B142: 01:47:00 | C142: 0:36 | D142: 1.025555556 | E142: 0.6133333333 | F142: 36.8
A143: 05:31:00 | B143: 04:45:00 | C143: -0:46 | D143: 23:14:00 | E143: -0.7666666667 | F143: -46
A144: 00:05:00 | B144: 00:15:00 | C144: 0:10 | D144: =IF((B144<A144),(B144-A144)+IF(B144<A144,1),(B144-A144)+IF(B144>A144,1)) -> 1.006944444 | E144: 0.1666666667 | F144: 10
A145: 11:58:54 | B145: 15:08:00 | C145: 3:09 | D145: 1.131319444 | E145: 3.151666667 | F145: 189.1
A146: 13:05:24 | B146: 13:51:00 | C146: 0:45 | D146: 1.031666667 | E146: 0.76 | F146: 45.6
A147: 03:18:30 | B147: 03:34:00 | C147: 0:15 | D147: 1.010763889 | E147: 0.2583333333 | F147: 15.5
A148: 10:54:39 | B148: 12:46:00 | C148: 1:51 | D148: 1.077326389 | E148: 1.855833333 | F148: 111.35
A149: 10:08:30 | B149: 10:53:00 | C149: 0:44 | D149: 1.030902778 | E149: 0.7416666667 | F149: 44.5
A150: 11:10:36 | B150: 11:54:00 | C150: 0:43 | D150: 1.030138889 | E150: 0.7233333333 | F150: 43.4
A151: 10:17:03 | B151: 10:38:00 | C151: 0:20 | D151: 1.014548611 | E151: 0.3491666667 | F151: 20.95
A152: 13:39:09 | B152: 15:42:00 | C152: 2:02 | D152: 1.0853125 | E152: 2.0475 | F152: 122.85
A153: 11:28:00 | B153: 12:36:00 | C153: 1:08 | D153: 1.047222222 | E153: 1.133333333 | F153: 68
A154: 1463.045139 | B154: 01:20:00 | C154: -23:45 | D154: -1461.989583 | E154: 0.25 | F154: 15
A155: 05:24:24 | B155: 05:54:00 | C155: 0:29 | D155: 1.020555556 | E155: 0.4933333333 | F155: 29.6
A156: 05:13:18 | B156: 05:40:00 | C156: 0:26 | D156: 1.018541667 | E156: 0.445 | F156: 26.7
A157: 08:04:39 | B157: 08:51:00 | C157: 0:46 | D157: 1.0321875 | E157: 0.7725 | F157: 46.35
A158: 1463.052639 | B158: 01:18:00 | C158: -23:57 | D158: -1461.998472 | E158: 0.03666666667 | F158: 2.2
A159: 03:20:12 | B159: 03:51:00 | C159: 0:30 | D159: 1.021388889 | E159: 0.5133333333 | F159: 30.8
A160: 03:04:12 | B160: 03:09:00 | C160: 0:04 | D160: 1.003333333 | E160: 0.08 | F160: 4.8
A161: 16:58:36 | B161: 17:16:00 | C161: 0:17 | D161: 1.012083333 | E161: 0.29 | F161: 17.4
A162: 16:50:24 | B162: 18:24:00 | C162: 1:33 | D162: 1.065 | E162: 1.56 | F162: 93.6
A163: 04:16:48 | B163: 04:29:00 | C163: 0:12 | D163: 1.008472222 | E163: 0.2033333333 | F163: 12.2
A164: 06:16:00 | B164: 05:55:00 | C164: -0:21 | D164: 23:39:00 | E164: -0.35 | F164: -21
A165: 06:05:00 | B165: 06:04:00 | C165: -0:01 | D165: 23:59:00 | E165: -0.01666666667 | F165: -1
A166: 06:16:48 | B166: 06:30:00 | C166: 0:13 | D166: 1.009166667 | E166: 0.22 | F166: 13.2
A167: 23:09:06 | B167: 01:25:00 | C167: -21:44 | D167: 02:15:54 | E167: 2.265 | F167: 135.9
A168: 09:32:00 | B168: 11:03:00 | C168: 1:31 | D168: 1.063194444 | E168: 1.516666667 | F168: 91
A169: 20:28:36 | B169: 22:18:00 | C169: 1:49 | D169: 1.075972222 | E169: 1.823333333 | F169: 109.4
A170: 07:10:48 | B170: 07:11:00 | C170: 0:00 | D170: 1.000138889 | E170: 0.003333333333 | F170: 0.2
A171: 07:16:48 | B171: 07:22:00 | C171: 0:05 | D171: 1.003611111 | E171: 0.08666666667 | F171: 5.2
A172: 20:15:24 | B172: 21:36:00 | C172: 1:20 | D172: 1.055972222 | E172: 1.343333333 | F172: 80.6
A173: 11:54:24 | B173: 12:34:00 | C173: 0:39 | D173: 1.0275 | E173: 0.66 | F173: 39.6
A174: 11:43:18 | B174: 11:30:00 | C174: -0:13 | D174: 23:46:42 | E174: -0.2216666667 | F174: -13.3
A175: 17:17:03 | B175: 18:15:00 | C175: 0:57 | D175: 1.040243056 | E175: 0.9658333333 | F175: 57.95
A176: 07:57:24 | B176: 08:10:00 | C176: 0:12 | D176: 1.00875 | E176: 0.21 | F176: 12.6
A177: 08:05:00 | B177: 08:18:00 | C177: 0:13 | D177: 1.009027778 | E177: 0.2166666667 | F177: 13
A178: 20:23:00 | B178: 19:27:00 | C178: -0:56 | D178: 23:04:00 | E178: -0.9333333333 | F178: -56
A179: 09:46:45 | B179: 11:25:00 | C179: 1:38 | D179: 1.068229167 | E179: 1.6375 | F179: 98.25
A180: 19:47:24 | B180: 19:59:00 | C180: 0:11 | D180: 1.008055556 | E180: 0.1933333333 | F180: 11.6
A181: 08:16:48 | B181: 08:39:00 | C181: 0:22 | D181: 1.015416667 | E181: 0.37 | F181: 22.2
A182: 18:08:30 | B182: 18:18:00 | C182: 0:09 | D182: 1.006597222 | E182: 0.1583333333 | F182: 9.5
A183: 01:08:21 | B183: 23:44:00 | C183: 22:35 | D183: 1.941423611 | E183: -1.405833333 | F183: -84.35
A184: 21:03:00 | B184: 22:14:00 | C184: 1:11 | D184: 1.049305556 | E184: 1.183333333 | F184: 71
A185: 21:20:30 | B185: 21:56:00 | C185: 0:35 | D185: 1.024652778 | E185: 0.5916666667 | F185: 35.5
A186: 09:05:00 | B186: 09:10:00 | C186: 0:05 | D186: 1.003472222 | E186: 0.08333333333 | F186: 5
A187: 17:12:57 | B187: 16:22:00 | C187: -0:50 | D187: 23:09:03 | E187: -0.8491666667 | F187: -50.95
A188: 21:13:12 | B188: 21:43:00 | C188: 0:29 | D188: 1.020694444 | E188: 0.4966666667 | F188: 29.8
A189: 21:03:06 | B189: 20:43:00 | C189: -0:20 | D189: 23:39:54 | E189: -0.335 | F189: -20.1
A190: 09:16:48 | B190: 09:33:00 | C190: 0:16 | D190: 1.01125 | E190: 0.27 | F190: 16.2
A191: 20:58:12 | B191: 21:08:00 | C191: 0:09 | D191: 1.006805556 | E191: 0.1633333333 | F191: 9.8
A192: 17:22:24 | B192: 16:56:00 | C192: -0:26 | D192: 23:33:36 | E192: -0.44 | F192: -26.4
A193: 17:38:57 | B193: 17:45:00 | C193: 0:06 | D193: 1.004201389 | E193: 0.1008333333 | F193: 6.05
A194: 17:50:51 | B194: 17:26:00 | C194: -0:24 | D194: 23:35:09 | E194: -0.4141666667 | F194: -24.85
A195: 10:05:00 | B195: 10:22:00 | C195: 0:17 | D195: 1.011805556 | E195: 0.2833333333 | F195: =IF(E195="","",E195*60) -> 17
A196: 19:47:00 | B196: 20:20:00 | C196: =IF(B196<A196,TEXT(MIN(A196)-MAX(B196),"-H::MM"),TEXT(MAX(B196)-MIN(A196),"H::MM")) -> 0:33 | D196: =IF((B196<A196),(B196-A196)+IF(B196<A196,1),(B196-A196)+IF(B196>A196,1)) -> 1.022916667 | E196: =ArrivalTimeDiff(A196, B196) -> 0.55 | F196: 33
A197: 20:41:36 | B197: 21:56:00 | C197: 1:14 | D197: 1.051666667 | E197: 1.24 | F197: 74.4
A198: 10:16:48 | B198: 10:39:00 | C198: 0:22 | D198: 1.015416667 | E198: 0.37 | F198: 22.2
A199: 23:39:09 | B199: 23:58:00 | C199: 0:18 | D199: 1.013090278 | E199: 0.3141666667 | F199: 18.85
A200: 23:45:36 | B200: 23:30:00 | C200: -0:15 | D200: 23:44:24 | E200: -0.26 | F200: -15.6
... 556 more rows
